fUSD/lending_fUSD_20240301
["ID","MTS","AMOUNT","RATE_DAILY","PERIOD"]
[316022021,1709327440528,-342.50729131,0.00021917,2]
[316022022,1709327440537,-674.18,0.00021917,2]
[316022023,1709327440546,-802.02,0.00021917,2]
[316022024,1709327440557,-593.99,0.00021917,2]
[316022025,1709327440566,-758.5,0.00021917,2]
[316022026,1709327440576,-500.0,0.00021917,2]
[316022027,1709327440585,-500.0,0.00021917,2]
[316022028,1709327440595,-500.0,0.00021917,2]
[316022029,1709327440605,-2460.18,0.00021917,2]
[316022030,1709327440614,-500.0,0.00021917,2]
[316022031,1709327440623,-500.0,0.00021917,2]
[316022032,1709327440633,-500.0,0.00021917,2]
[316022033,1709327440642,-500.0,0.00021917,2]
[316022034,1709327440652,-500.0,0.00021917,2]
[316022035,1709327440662,-874.36,0.00021917,2]
[316022036,1709327440671,-575.42,0.00021917,2]
[316022037,1709327440680,-5095.22,0.00021917,2]
[316022038,1709327440690,-500.0,0.00021917,2]
[316022039,1709327440700,-619.7,0.00021917,2]
[316022040,1709327440710,-4543.29,0.00021917,2]
[316022041,1709327440720,-500.0,0.00021917,2]
[316022042,1709327440731,-500.0,0.00021917,2]
[316022043,1709327440740,-500.0,0.00021917,2]
[316022044,1709327440749,-500.0,0.00021917,2]
[316022045,1709327440759,-500.0,0.00021917,2]
[316022046,1709327440768,-2791.17,0.00021917,2]
[316022047,1709327440778,-500.0,0.00021917,2]
[316022048,1709327440788,-500.0,0.00021917,2]
[316022049,1709327440798,-13075.41,0.00021917,2]
[316022050,1709327440809,-500.0,0.00021917,2]
[316022051,1709327440826,-1086.33,0.00021917,2]
[316022052,1709327440839,-446.08999113,0.00021917,2]
[316022053,1709327440849,-500.0,0.00021917,2]
[316022054,1709327440858,-697.61,0.00021917,2]
[316022055,1709327440867,-5143.43176705,0.00021917,2]
[316022056,1709327441406,-1246.74,0.00021917,2]
[316022057,1709327441449,-3192.73823295,0.00021917,2]
[316022058,1709327441459,-531.57,0.00021917,2]
[316022059,1709327441469,-500.0,0.00021917,2]
[316022060,1709327441478,-377.66133033,0.00021917,2]
[316022061,1709327441722,-1995.04866967,0.00021917,2]
[316022062,1709327441732,-1150.75133033,0.00021917,2]
[316022063,1709327441771,-1087.53866967,0.00021917,2]
[316022064,1709327441781,-500.0,0.00021917,2]
[316022065,1709327441790,-543.86813947,0.00021917,2]
[316022066,1709327441800,-302.0,0.00021917,2]
[316022067,1709327441811,-500.0,0.00021917,2]
[316022068,1709327441820,-500.0,0.00021917,2]
[316022069,1709327441829,-500.0,0.00021917,2]
[316022070,1709327441838,-3273.4,0.00021917,2]
[316022071,1709327441848,-500.0,0.00021917,2]
[316022072,1709327441858,-3863.53,0.00021917,2]
[316022073,1709327441867,-13361.28,0.00021917,2]
[316022074,1709327441877,-500.0,0.00021917,2]
[316022075,1709327441887,-1208.49,0.00021917,2]
[316022076,1709327441896,-500.0,0.00021917,2]
[316022077,1709327441904,-4739.16,0.00021917,2]
[316022078,1709327441914,-1157.09,0.00021917,2]
[316022079,1709327441923,-15192.43,0.00021917,2]
[316022080,1709327441932,-500.0,0.00021917,2]
[316022081,1709327441941,-500.0,0.00021917,2]
[316022082,1709327441950,-207.44508766,0.00021917,2]
[316022083,1709327441960,-500.0,0.00021917,2]
[316022084,1709327441969,-500.0,0.00021917,2]
[316022085,1709327441979,-564.66335395,0.00021917,2]
[316022086,1709327441988,-1083.08,0.00021917,2]
[316022087,1709327441997,-846.42,0.00021917,2]
[316022088,1709327442008,-500.0,0.00021917,2]
[316022089,1709327442017,-500.0,0.00021917,2]
[316022090,1709327442026,-528.4939505,0.00021917,2]
[316022091,1709327442035,-500.0,0.00021917,2]
[316022092,1709327442045,-500.0,0.00021917,2]
[316022093,1709327442055,-500.0,0.00021917,2]
[316022094,1709327442065,-836.05,0.00021917,2]
[316022095,1709327442074,-500.0,0.00021917,2]
[316022096,1709327442084,-500.0,0.00021917,2]
[316022097,1709327442093,-3538.29,0.00021917,2]
[316022098,1709327442102,-508.76669944,0.00021917,2]
[316022099,1709327442112,-1788.19,0.00021917,2]
[316022100,1709327442123,-1380.52,0.00021917,2]
[316022101,1709327442133,-570.9,0.00021917,2]
[316022102,1709327442142,-3365.09,0.00021917,2]
[316022103,1709327442151,-1080.69,0.00021917,2]
[316022104,1709327442160,-1084.53,0.00021917,2]
[316022105,1709327442169,-500.0,0.00021917,2]
[316022106,1709327442179,-902.73,0.00021917,2]
[316022107,1709327442188,-500.0,0.00021917,2]
[316022108,1709327442198,-500.0,0.00021917,2]
[316022109,1709327442208,-1536.91,0.00021917,2]
[316022110,1709327442217,-500.0,0.00021917,2]
[316022111,1709327442226,-7184.22,0.00021917,2]
[316022112,1709327442235,-500.0,0.00021917,2]
[316022113,1709327442244,-712.93,0.00021917,2]
[316022114,1709327442253,-500.0,0.00021917,2]
[316022115,1709327442261,-500.0,0.00021917,2]
[316022116,1709327442271,-500.0,0.00021917,2]
[316022117,1709327442280,-2694.61,0.00021917,2]
[316022118,1709327442289,-500.0,0.00021917,2]
[316022119,1709327442298,-500.0,0.00021917,2]
[316022120,1709327442310,-500.0,0.00021917,2]
[316022121,1709327442319,-527.47,0.00021917,2]
[316022122,1709327442329,-3160.24,0.00021917,2]
[316022123,1709327442339,-500.0,0.00021917,2]
[316022124,1709327442348,-500.0,0.00021917,2]
[316022125,1709327442357,-2910.19,0.00021917,2]
[316022126,1709327442367,-500.0,0.00021917,2]
[316022127,1709327442377,-907.07,0.00021917,2]
[316022128,1709327442387,-1012.0,0.00021917,2]
[316022129,1709327442396,-521.03080935,0.00021917,2]
[316022130,1709327442406,-1643.86,0.00021917,2]
[316022131,1709327442416,-500.0,0.00021917,2]
[316022132,1709327442425,-518.91,0.00021917,2]
[316022133,1709327442435,-500.0,0.00021917,2]
[316022134,1709327442444,-2423.72,0.00021917,2]
[316022135,1709327442455,-500.0,0.00021917,2]
[316022136,1709327442464,-557.18562186,0.00021917,2]
[316022137,1709327442474,-729.11,0.00021917,2]
[316022139,1709327442483,-500.0,0.00021917,2]
[316022140,1709327442493,-500.0,0.00021917,2]
[316022141,1709327442503,-883.75,0.00021917,2]
[316022142,1709327442511,-509.83,0.00021917,2]
[316022143,1709327442525,-500.0,0.00021917,2]
[316022145,1709327442535,-500.0,0.00021917,2]
[316022147,1709327442544,-500.0,0.00021917,2]
[316022149,1709327442555,-1378.45,0.00021917,2]
[316022150,1709327442565,-608.29325079,0.00021917,2]
[316022152,1709327442574,-589.53,0.00021917,2]
[316022153,1709327442583,-500.0,0.00021917,2]
[316022154,1709327442593,-500.0,0.00021917,2]
[316022155,1709327442602,-500.0,0.00021917,2]
[316022156,1709327442612,-500.0,0.00021917,2]
[316022157,1709327442622,-500.0,0.00021917,2]
[316022158,1709327442632,-500.0,0.00021917,2]
[316022159,1709327442643,-500.0,0.00021917,2]
[316022160,1709327442653,-553.48,0.00021917,2]
[316022161,1709327442662,-500.0,0.00021917,2]
[316022162,1709327442672,-500.0,0.00021917,2]
[316022163,1709327442682,-735.21,0.00021917,2]
[316022164,1709327442692,-711.66,0.00021917,2]
[316022165,1709327442701,-500.0,0.00021917,2]
[316022166,1709327442711,-500.0,0.00021917,2]
[316022167,1709327442721,-697.75,0.00021917,2]
[316022168,1709327442732,-500.0,0.00021917,2]
[316022169,1709327442741,-500.0,0.00021917,2]
[316022170,1709327442751,-500.0,0.00021917,2]
[316022171,1709327442760,-500.0,0.00021917,2]
[316022172,1709327442771,-500.0,0.00021917,2]
[316022173,1709327442781,-1628.97,0.00021917,2]
[316022174,1709327442790,-746.85,0.00021917,2]
[316022175,1709327442800,-500.0,0.00021917,2]
[316022176,1709327442811,-500.0,0.00021917,2]
[316022177,1709327442821,-500.0,0.00021917,2]
[316022178,1709327442829,-703.92,0.00021917,2]
[316022179,1709327442839,-500.0,0.00021917,2]
[316022180,1709327442848,-766.47,0.00021917,2]
[316022181,1709327442857,-583.31,0.00021917,2]
[316022182,1709327442868,-500.0,0.00021917,2]
[316022183,1709327442877,-500.0,0.00021917,2]
[316022184,1709327442886,-500.0,0.00021917,2]
[316022185,1709327442896,-500.0,0.00021917,2]
[316022186,1709327442905,-932.22,0.00021917,2]
[316022187,1709327442914,-500.0,0.00021917,2]
[316022188,1709327442923,-894.62,0.00021917,2]
[316022189,1709327442932,-1880.26,0.00021917,2]
[316022190,1709327442942,-500.0,0.00021917,2]
[316022191,1709327442951,-500.0,0.00021917,2]
[316022192,1709327442960,-1015.13,0.00021917,2]
[316022193,1709327442970,-729.79,0.00021917,2]
[316022194,1709327442979,-500.0,0.00021917,2]
[316022195,1709327442989,-500.0,0.00021917,2]
[316022196,1709327442998,-500.0,0.00021917,2]
[316022197,1709327443007,-500.0,0.00021917,2]
[316022198,1709327443017,-1414.53,0.00021917,2]
[316022199,1709327443027,-500.0,0.00021917,2]
[316022200,1709327443037,-500.0,0.00021917,2]
[316022201,1709327443046,-914.2,0.00021917,2]
[316022202,1709327443055,-513.31871677,0.00021917,2]
[316022203,1709327443065,-570.43,0.00021917,2]
[316022204,1709327443074,-629.7,0.00021917,2]
[316022205,1709327443085,-500.0,0.00021917,2]
[316022206,1709327443095,-500.0,0.00021917,2]
[316022207,1709327443104,-2928.05,0.00021917,2]
[316022208,1709327443114,-1028.0,0.00021917,2]
[316022209,1709327443123,-289.04449279,0.00021917,2]
[316022210,1709327443133,-582.48,0.00021917,2]
[316022211,1709327443143,-500.0,0.00021917,2]
[316022212,1709327443153,-626.77,0.00021917,2]
[316022213,1709327443164,-500.0,0.00021917,2]
[316022214,1709327443173,-626.48063644,0.00021917,2]
[316022215,1709327443183,-552.37,0.00021917,2]
[316022216,1709327443193,-1008.5,0.00021917,2]
[316022217,1709327443202,-635.13,0.00021917,2]
[316022218,1709327443211,-3808.77,0.00021917,2]
[316022219,1709327443221,-1798.0,0.00021917,2]
[316022220,1709327443231,-500.0,0.00021917,2]
[316022221,1709327443240,-698.46,0.00021917,2]
[316022222,1709327443251,-2046.85,0.00021917,2]
[316022223,1709327443260,-500.0,0.00021917,2]
[316022224,1709327443270,-199.8141586,0.00021917,2]
[316022226,1709327443279,-500.0,0.00021917,2]
[316022228,1709327443289,-517.1631947,0.00021917,2]
[316022230,1709327443298,-748.33,0.00021917,2]
[316022232,1709327443309,-500.0,0.00021917,2]
[316022234,1709327443318,-506.32723958,0.00021917,2]
[316022235,1709327443328,-500.0,0.00021917,2]
[316022236,1709327443337,-500.0,0.00021917,2]
[316022237,1709327443347,-963.9,0.00021917,2]
[316022238,1709327443357,-817.49,0.00021917,2]
[316022239,1709327443367,-500.0,0.00021917,2]
[316022240,1709327443376,-500.0,0.00021917,2]
[316022241,1709327443386,-502.53956306,0.00021917,2]
[316022242,1709327443395,-500.0,0.00021917,2]
[316022243,1709327443405,-1750.36,0.00021917,2]
[316022244,1709327443414,-2795.7,0.00021917,2]
[316022245,1709327443424,-500.0,0.00021917,2]
[316022246,1709327443433,-502.51998748,0.00021917,2]
[316022247,1709327443442,-544.42,0.00021917,2]
[316022248,1709327443451,-500.0,0.00021917,2]
[316022249,1709327443460,-547.71416792,0.00021917,2]
[316022250,1709327443470,-500.0,0.00021917,2]
[316022251,1709327443480,-1462.57,0.00021917,2]
[316022252,1709327443490,-500.0,0.00021917,2]
[316022253,1709327443500,-314.06254795,0.00021917,2]
[316022254,1709327443509,-500.0,0.00021917,2]
[316022255,1709327443519,-500.0,0.00021917,2]
[316022256,1709327443529,-500.0,0.00021917,2]
[316022257,1709327443538,-500.0,0.00021917,2]
[316022258,1709327443548,-500.0,0.00021917,2]
[316022260,1709327443559,-500.0,0.00021917,2]
[316022262,1709327443569,-500.0,0.00021917,2]
[316022264,1709327443578,-500.0,0.00021917,2]
[316022265,1709327443587,-500.0,0.00021917,2]
[316022266,1709327443597,-500.0,0.00021917,2]
[316022267,1709327443606,-500.0,0.00021917,2]
[316022268,1709327443616,-500.0,0.00021917,2]
[316022269,1709327443626,-581.14,0.00021917,2]
[316022270,1709327443636,-500.0,0.00021917,2]
[316022271,1709327443646,-500.0,0.00021917,2]
[316022272,1709327443656,-500.0,0.00021917,2]
[316022273,1709327443667,-500.0,0.00021917,2]
[316022274,1709327443677,-963.96,0.00021917,2]
[316022275,1709327443686,-500.0,0.00021917,2]
[316022276,1709327443696,-500.0,0.00021917,2]
[316022277,1709327443710,-500.0,0.00021917,2]
[316022278,1709327443719,-217.05,0.00021917,2]
[316022279,1709327443729,-2872.28,0.00021917,2]
[316022280,1709327443739,-668.73,0.00021917,2]
[316022281,1709327443751,-1433.79,0.00021917,2]
[316022282,1709327443760,-500.0,0.00021917,2]
[316022283,1709327443769,-500.0,0.00021917,2]
[316022284,1709327443778,-500.0,0.00021917,2]
[316022285,1709327443788,-500.0,0.00021917,2]
[316022286,1709327443797,-500.0,0.00021917,2]
[316022287,1709327443809,-500.0,0.00021917,2]
[316022288,1709327443818,-564.73,0.00021917,2]
[316022289,1709327443828,-308.83271052,0.00021917,2]
[316022290,1709327443837,-2954.46,0.00021917,2]
[316022291,1709327443846,-500.0,0.00021917,2]
[316022292,1709327443856,-854.05,0.00021917,2]
[316022293,1709327443865,-500.0,0.00021917,2]
[316022294,1709327443875,-500.0,0.00021917,2]
[316022295,1709327443884,-500.0,0.00021917,2]
[316022296,1709327443894,-680.92,0.00021917,2]
[316022297,1709327443904,-500.0,0.00021917,2]
[316022298,1709327443914,-500.0,0.00021917,2]
[316022299,1709327443923,-500.0,0.00021917,2]
[316022300,1709327443933,-500.0,0.00021917,2]
[316022301,1709327443943,-500.0,0.00021917,2]
[316022302,1709327443952,-500.0,0.00021917,2]
[316022303,1709327443962,-500.0,0.00021917,2]
[316022304,1709327443972,-500.0,0.00021917,2]
[316022305,1709327443981,-587.0,0.00021917,2]
[316022306,1709327443990,-500.0,0.00021917,2]
[316022307,1709327444000,-500.0,0.00021917,2]
[316022308,1709327444010,-500.0,0.00021917,2]
[316022309,1709327444019,-500.0,0.00021917,2]
[316022310,1709327444029,-1483.22,0.00021917,2]
[316022311,1709327444038,-500.0,0.00021917,2]
[316022312,1709327444048,-3296.84,0.00021917,2]
[316022313,1709327444058,-992.09,0.00021917,2]
[316022314,1709327444068,-1166.7,0.00021917,2]
[316022315,1709327444077,-500.0,0.00021917,2]
[316022316,1709327444087,-500.0,0.00021917,2]
[316022317,1709327444097,-500.0,0.00021917,2]
[316022318,1709327444106,-500.0,0.00021917,2]
[316022319,1709327444116,-500.0,0.00021917,2]
[316022320,1709327444126,-500.0,0.00021917,2]
[316022321,1709327444135,-1520.97,0.00021917,2]
[316022322,1709327444145,-500.0,0.00021917,2]
[316022323,1709327444155,-649.61,0.00021917,2]
[316022324,1709327444165,-1316.59,0.00021917,2]
[316022325,1709327444175,-500.0,0.00021917,2]
[316022326,1709327444185,-500.0,0.00021917,2]
[316022327,1709327444195,-718.57,0.00021917,2]
[316022328,1709327444206,-533.26216397,0.00021917,2]
[316022329,1709327444217,-1959.03,0.00021917,2]
[316022330,1709327444228,-10169.7,0.00021917,2]
[316022331,1709327444238,-500.0,0.00021917,2]
[316022332,1709327444248,-500.0,0.00021917,2]
[316022333,1709327444258,-502.23754686,0.00021917,2]
[316022334,1709327444267,-2072.5,0.00021917,2]
[316022335,1709327444277,-500.0,0.00021917,2]
[316022336,1709327444288,-500.0,0.00021917,2]
[316022337,1709327444297,-7070.22,0.00021917,2]
[316022338,1709327444310,-500.0,0.00021917,2]
[316022339,1709327444320,-540.64892425,0.00021917,2]
[316022340,1709327444329,-500.0,0.00021917,2]
[316022341,1709327444339,-631.02,0.00021917,2]
[316022342,1709327444349,-529.11,0.00021917,2]
[316022343,1709327444360,-5861.18,0.00021917,2]
[316022344,1709327444369,-500.0,0.00021917,2]
[316022345,1709327444379,-493.60019078,0.00021917,2]
[316022346,1709327444389,-500.0,0.00021917,2]
[316022347,1709327444400,-537.06,0.00021917,2]
[316022348,1709327444410,-33577.13,0.00021917,2]
[316022349,1709327444421,-500.0,0.00021917,2]
[316022350,1709327444430,-500.0,0.00021917,2]
[316022351,1709327444441,-1668.82,0.00021917,2]
[316022352,1709327444451,-891.32,0.00021917,2]
[316022353,1709327444461,-500.0,0.00021917,2]
[316022354,1709327444471,-500.0,0.00021917,2]
[316022355,1709327444481,-8901.44,0.00021917,2]
[316022356,1709327444491,-500.0,0.00021917,2]
[316022357,1709327444502,-2011.98,0.00021917,2]
[316022358,1709327444512,-3361.6,0.00021917,2]
[316022359,1709327444522,-500.0,0.00021917,2]
[316022360,1709327444533,-500.0,0.00021917,2]
[316022361,1709327444543,-967.73,0.00021917,2]
[316022362,1709327444553,-1064.03,0.00021917,2]
[316022363,1709327444564,-500.0,0.00021917,2]
[316022364,1709327444573,-500.0,0.00021917,2]
[316022365,1709327444583,-500.0,0.00021917,2]
[316022366,1709327444593,-500.0,0.00021917,2]
[316022367,1709327444603,-500.0,0.00021917,2]
[316022368,1709327444613,-638.84,0.00021917,2]
[316022369,1709327444624,-500.0,0.00021917,2]
[316022370,1709327444634,-2149.2,0.00021917,2]
[316022371,1709327444644,-500.0,0.00021917,2]
[316022372,1709327444653,-500.0,0.00021917,2]
[316022373,1709327444663,-6084.97,0.00021917,2]
[316022374,1709327444673,-2108.84,0.00021917,2]
[316022375,1709327444683,-546.93682322,0.00021917,2]
[316022376,1709327444693,-500.0,0.00021917,2]
[316022377,1709327444705,-367.11213974,0.00021926,2]
[316022378,1709327444715,-391.70626038,0.00021926,2]
[316022379,1709327444724,-245000.0,0.00021927,2]
[316022380,1709327444734,-459.40538362,0.0002193,2]
[316022381,1709327444744,-1754.36828258,0.00021946,2]
[316022382,1709327444754,-222.27,0.00021969,2]
[316022383,1709327444764,-459.40538362,0.00021987,2]
[316022384,1709327444774,-200000.0,0.00022,2]
[316022385,1709327444783,-1369.99909469,0.00022,2]
[316022386,1709327444794,-1296.0,0.00022,2]
[316022387,1709327444804,-1296.0,0.00022,2]
[316022388,1709327444814,-11302.89437177,0.00022,2]
[316022389,1709327444824,-516.42,0.00022,2]
[316022390,1709327444835,-600.0,0.00022,3]
[316022391,1709327444845,-36309.5,0.00022,2]
[316022392,1709327444855,-485.03,0.00022,2]
[316022393,1709327444865,-482.4746462,0.00022025,2]
[316022394,1709327444876,-488.48707728,0.00022026,2]
[316022395,1709327444886,-268.37164607,0.00022026,2]
[316022396,1709327444897,-150.0,0.00022026,2]
[316022397,1709327444907,-503.80549925,0.00022027,2]
[316022398,1709327444917,-510.73,0.00022027,2]
[316022399,1709327444926,-326.16,0.00022027,2]
[316022400,1709327444936,-500.0,0.00022027,2]
[316022401,1709327444946,-539.62054546,0.00022027,2]
[316022402,1709327444957,-500.0,0.00022027,2]
[316022403,1709327444966,-240.77250035,0.00022027,2]
[316022404,1709327444976,-500.0,0.00022027,2]
[316022405,1709327444985,-500.0,0.00022027,2]
[316022406,1709327444995,-507.99815361,0.00022027,2]
[316022407,1709327445005,-500.0,0.00022027,2]
[316022408,1709327445015,-500.0,0.00022027,2]
[316022409,1709327445024,-500.0,0.00022027,2]
[316022410,1709327445034,-500.0,0.00022027,2]
[316022411,1709327445044,-500.0,0.00022027,2]
[316022412,1709327445054,-500.0,0.00022027,2]
[316022413,1709327445064,-500.0,0.00022027,2]
[316022414,1709327445074,-500.0,0.00022027,2]
[316022415,1709327445084,-272.22561909,0.00022027,2]
[316022416,1709327445093,-500.0,0.00022027,2]
[316022417,1709327445103,-500.0,0.00022027,2]
[316022418,1709327445113,-500.0,0.00022027,2]
[316022419,1709327445123,-500.0,0.00022027,2]
[316022420,1709327445133,-500.0,0.00022027,2]
[316022421,1709327445142,-500.0,0.00022027,2]
[316022422,1709327445151,-500.0,0.00022027,2]
[316022423,1709327445161,-500.0,0.00022027,2]
[316022424,1709327445170,-500.0,0.00022027,2]
[316022425,1709327445180,-500.0,0.00022027,2]
[316022426,1709327445189,-500.0,0.00022027,2]
[316022427,1709327445199,-500.0,0.00022027,2]
[316022428,1709327445209,-500.0,0.00022027,2]
[316022429,1709327445218,-500.0,0.00022027,2]
[316022430,1709327445228,-500.0,0.00022027,2]
[316022431,1709327445238,-500.0,0.00022027,2]
[316022432,1709327445248,-500.0,0.00022027,2]
[316022433,1709327445258,-500.0,0.00022027,2]
[316022434,1709327445268,-432.82,0.00022027,2]
[316022435,1709327445277,-572.56,0.00022027,2]
[316022436,1709327445287,-175.01058358,0.00022027,2]
[316022437,1709327445297,-505.4828973,0.00022027,2]
[316022438,1709327445309,-506.05570899,0.00022027,2]
[316022439,1709327445320,-500.0,0.00022027,2]
[316022440,1709327445332,-500.0,0.00022027,2]
[316022441,1709327445342,-500.0,0.00022027,2]
[316022442,1709327445354,-500.0,0.00022027,2]
[316022443,1709327445364,-500.0,0.00022027,2]
[316022444,1709327445375,-500.0,0.00022027,2]
[316022445,1709327445385,-500.0,0.00022027,2]
[316022446,1709327445395,-164.97396707,0.00022027,2]
[316022447,1709327445407,-500.0,0.00022027,2]
[316022448,1709327445418,-500.0,0.00022027,2]
[316022449,1709327445429,-500.0,0.00022027,2]
[316022450,1709327445439,-500.0,0.00022027,2]
[316022451,1709327445450,-500.0,0.00022027,2]
[316022452,1709327445461,-509.84178774,0.00022027,2]
[316022453,1709327445471,-505.22095577,0.00022027,2]
[316022454,1709327445481,-500.0,0.00022027,2]
[316022455,1709327445490,-500.0,0.00022027,2]
[316022456,1709327445500,-500.0,0.00022027,2]
[316022457,1709327445511,-500.0,0.00022027,2]
[316022459,1709327445521,-500.0,0.00022027,2]
[316022461,1709327445531,-500.0,0.00022027,2]
[316022462,1709327445541,-500.0,0.00022027,2]
[316022464,1709327445551,-500.0,0.00022027,2]
[316022466,1709327445563,-500.0,0.00022027,2]
[316022468,1709327445573,-500.0,0.00022027,2]
[316022470,1709327445583,-500.0,0.00022027,2]
[316022471,1709327445592,-504.70825567,0.00022027,2]
[316022472,1709327445602,-500.0,0.00022027,2]
[316022473,1709327445611,-500.0,0.00022027,2]
[316022474,1709327445621,-500.0,0.00022027,2]
[316022475,1709327445631,-704.59,0.00022027,2]
[316022476,1709327445642,-500.0,0.00022027,2]
[316022477,1709327445652,-500.0,0.00022027,2]
[316022478,1709327445662,-500.0,0.00022027,2]
[316022479,1709327445673,-500.0,0.00022027,2]
[316022480,1709327445950,-500.0,0.00022027,2]
[316022481,1709327445960,-500.0,0.00022027,2]
[316022482,1709327445970,-500.0,0.00022027,2]
[316022483,1709327445979,-500.0,0.00022027,2]
[316022484,1709327445989,-500.0,0.00022027,2]
[316022485,1709327445998,-500.0,0.00022027,2]
[316022486,1709327446008,-500.0,0.00022027,2]
[316022487,1709327446018,-500.0,0.00022027,2]
[316022488,1709327446027,-500.0,0.00022027,2]
[316022489,1709327446036,-500.0,0.00022027,2]
[316022490,1709327446046,-597.89,0.00022027,2]
[316022491,1709327446056,-500.0,0.00022027,2]
[316022492,1709327446065,-500.0,0.00022027,2]
[316022493,1709327446074,-500.0,0.00022027,2]
[316022494,1709327446084,-500.0,0.00022027,2]
[316022495,1709327446093,-500.0,0.00022027,2]
[316022496,1709327446102,-500.0,0.00022027,2]
[316022497,1709327446111,-203.1412269,0.00022027,2]
[316022498,1709327446121,-500.0,0.00022027,2]
[316022499,1709327446131,-500.0,0.00022027,2]
[316022500,1709327446140,-500.0,0.00022027,2]
[316022501,1709327446150,-500.0,0.00022027,2]
[316022502,1709327446159,-171.09556699,0.00022027,2]
[316022503,1709327446169,-500.0,0.00022027,2]
[316022504,1709327446179,-500.0,0.00022027,2]
[316022505,1709327446188,-540.34199626,0.00022027,2]
[316022506,1709327446198,-308.7936472,0.00022027,2]
[316022507,1709327446208,-500.0,0.00022027,2]
[316022508,1709327446219,-500.0,0.00022027,2]
[316022509,1709327446228,-500.0,0.00022027,2]
[316022510,1709327446238,-500.0,0.00022027,2]
[316022511,1709327446247,-305.36,0.00022027,2]
[316022512,1709327446257,-500.0,0.00022027,2]
[316022513,1709327446267,-500.0,0.00022027,2]
[316022514,1709327446277,-500.0,0.00022027,2]
[316022515,1709327446286,-500.0,0.00022027,2]
[316022516,1709327446295,-500.0,0.00022027,2]
[316022517,1709327446306,-500.0,0.00022027,2]
[316022518,1709327446316,-406.53,0.00022027,2]
[316022519,1709327446325,-500.0,0.00022027,2]
[316022520,1709327446335,-500.0,0.00022027,2]
[316022521,1709327446344,-500.0,0.00022027,2]
[316022522,1709327446355,-500.0,0.00022027,2]
[316022523,1709327446365,-500.0,0.00022027,2]
[316022524,1709327446374,-563.82,0.00022027,2]
[316022525,1709327446384,-500.0,0.00022027,2]
[316022526,1709327446394,-500.0,0.00022027,2]
[316022527,1709327446404,-500.0,0.00022027,2]
[316022528,1709327446414,-500.0,0.00022027,2]
[316022529,1709327446424,-552.9,0.00022027,2]
[316022530,1709327446434,-500.0,0.00022027,2]
[316022531,1709327446444,-500.0,0.00022027,2]
[316022532,1709327446454,-500.0,0.00022027,2]
[316022533,1709327446465,-500.0,0.00022027,2]
[316022534,1709327446475,-500.0,0.00022027,2]
[316022535,1709327446485,-500.0,0.00022027,2]
[316022536,1709327446496,-500.0,0.00022027,2]
[316022537,1709327446506,-222.08,0.00022027,2]
[316022538,1709327446516,-462.81259036,0.00022027,2]
[316022539,1709327446526,-500.0,0.00022027,2]